[Event "*** Titled Tuesday Blitz"]
[Site "Chess.com"]
[Date "2020.12.01"]
[Round "4"]
[White "NMZanette"]
[Black "akanga001"]
[Result "1-0"]
[WhiteElo "2246"]
[BlackElo "1941"]
[TimeControl "180+1"]
[EndTime "10:38:00 PST"]
[Termination "NMZanette won on time"]

1. e4 {[%clk 0:03:00.4]} 1... d6 {[%clk 0:02:58.5]} 2. d4 {[%clk 0:02:59.6]}
2... Nf6 {[%clk 0:02:58.8]} 3. Nc3 {[%clk 0:02:58.7]} 3... c6 {[%clk 0:02:58.9]}
4. a4 {[%clk 0:02:57.6]} 4... Qa5 {[%clk 0:02:56.2]} 5. Bd3 {[%clk 0:02:55.6]}
5... e5 {[%clk 0:02:54.7]} 6. dxe5 {[%clk 0:02:50.2]} 6... dxe5 {[%clk
0:02:53.7]} 7. Nf3 {[%clk 0:02:48.7]} 7... Bg4 {[%clk 0:02:52]} 8. h3 {[%clk
0:02:48]} 8... Bxf3 {[%clk 0:02:50.9]} 9. Qxf3 {[%clk 0:02:47.2]} 9... Nbd7
{[%clk 0:02:51.1]} 10. Bd2 {[%clk 0:02:46.8]} 10... Qc7 {[%clk 0:02:37]} 11. O-O
{[%clk 0:02:44.3]} 11... O-O-O {[%clk 0:02:31]} 12. Rfb1 {[%clk 0:02:41.9]}
12... Bb4 {[%clk 0:02:24.3]} 13. a5 {[%clk 0:02:28.8]} 13... a6 {[%clk
0:02:16.6]} 14. Ra4 {[%clk 0:02:16.4]} 14... Qd6 {[%clk 0:01:42.2]} 15. Be3
{[%clk 0:01:35.2]} 15... h6 {[%clk 0:00:44.9]} 16. Ne2 {[%clk 0:01:11]} 16...
Bc5 {[%clk 0:00:34.3]} 17. b4 {[%clk 0:01:06.6]} 17... Bd4 {[%clk 0:00:24.9]}
18. Bc4 {[%clk 0:00:58.1]} 18... Rhf8 {[%clk 0:00:21.7]} 19. Rd1 {[%clk
0:00:54.6]} 19... c5 {[%clk 0:00:21.6]} 20. b5 {[%clk 0:00:44.8]} 20... axb5
{[%clk 0:00:17.7]} 21. Bxb5 {[%clk 0:00:45]} 21... Kc7 {[%clk 0:00:15.2]} 22. c3
{[%clk 0:00:44.2]} 22... Ra8 {[%clk 0:00:07.1]} 23. cxd4 {[%clk 0:00:42.4]}
23... cxd4 {[%clk 0:00:08]} 24. Rc1+ {[%clk 0:00:41]} 24... Kb8 {[%clk
0:00:06.2]} 25. Bd2 {[%clk 0:00:40.9]} 25... Nc5 {[%clk 0:00:01.7]} 26. Bb4
{[%clk 0:00:38.9]} 26... Nfd7 {[%clk 0:00:02]} 27. Bxd7 {[%clk 0:00:37.9]} 1-0

[Event "*** Titled Tuesday Blitz"]
[Site "Chess.com"]
[Date "2020.12.01"]
[Round "4"]
[White "TimurGareyev"]
[Black "MartinMatthiesen"]
[Result "1-0"]
[WhiteElo "2616"]
[BlackElo "2396"]
[TimeControl "180+1"]
[EndTime "10:38:03 PST"]
[Termination "TimurGareyev won on time"]

1. a4 {[%clk 0:03:00.6]} 1... e5 {[%clk 0:02:57.2]} 2. Na3 {[%clk 0:02:59.9]}
2... d5 {[%clk 0:02:56.1]} 3. c3 {[%clk 0:02:57]} 3... Nf6 {[%clk 0:02:54.6]} 4.
d3 {[%clk 0:02:56.9]} 4... c6 {[%clk 0:02:53.8]} 5. Nf3 {[%clk 0:02:56.2]} 5...
Bd6 {[%clk 0:02:53.5]} 6. e4 {[%clk 0:02:56.6]} 6... O-O {[%clk 0:02:52.5]} 7.
Bg5 {[%clk 0:02:53]} 7... h6 {[%clk 0:02:51.1]} 8. Bxf6 {[%clk 0:02:51.7]} 8...
Qxf6 {[%clk 0:02:50.5]} 9. Nc2 {[%clk 0:02:51.4]} 9... Re8 {[%clk 0:02:48.7]}
10. Ne3 {[%clk 0:02:50.7]} 10... dxe4 {[%clk 0:02:40.9]} 11. dxe4 {[%clk
0:02:50.2]} 11... Bc5 {[%clk 0:02:39]} 12. Qe2 {[%clk 0:02:47.1]} 12... b6
{[%clk 0:02:34.9]} 13. h3 {[%clk 0:02:45.7]} 13... Ba6 {[%clk 0:02:33.6]} 14.
Nc4 {[%clk 0:02:43.9]} 14... Nd7 {[%clk 0:02:28.7]} 15. b4 {[%clk 0:02:43.2]}
15... Bf8 {[%clk 0:02:25.2]} 16. Qc2 {[%clk 0:02:42.4]} 16... Bxc4 {[%clk
0:02:08.6]} 17. Bxc4 {[%clk 0:02:41.5]} 17... a5 {[%clk 0:02:09.1]} 18. b5
{[%clk 0:02:41.3]} 18... Rac8 {[%clk 0:02:02.8]} 19. bxc6 {[%clk 0:02:40.9]}
19... Rxc6 {[%clk 0:01:57.5]} 20. Bb5 {[%clk 0:02:40.8]} 20... Rc7 {[%clk
0:01:49.5]} 21. O-O-O {[%clk 0:02:39.8]} 21... Re7 {[%clk 0:01:46.4]} 22. Rd5
{[%clk 0:02:37.3]} 22... Nc5 {[%clk 0:01:31.3]} 23. Rhd1 {[%clk 0:02:37.3]}
23... Qf4+ {[%clk 0:01:27]} 24. Kb2 {[%clk 0:02:37]} 24... Nxe4 {[%clk
0:01:23.4]} 25. Rd8 {[%clk 0:02:37.1]} 25... g6 {[%clk 0:01:05.8]} 26. c4 {[%clk
0:01:51.8]} 26... Nc5 {[%clk 0:00:16.4]} 27. Rb8 {[%clk 0:01:50.9]} 27... e4
{[%clk 0:00:16.4]} 28. Qc3 {[%clk 0:01:51.2]} 28... f6 {[%clk 0:00:07.1]} 29.
Rdd8 {[%clk 0:01:51.2]} 29... Rf7 {[%clk 0:00:07.2]} 30. Qd4 {[%clk 0:01:32]}
30... g5 {[%clk 0:00:05.8]} 31. Nd2 {[%clk 0:01:26.9]} 31... Nd3+ {[%clk
0:00:04.5]} 32. Kc3 {[%clk 0:01:26.3]} 32... Qe5 {[%clk 0:00:04]} 33. Be8 {[%clk
0:01:25.5]} 33... Qxd4+ {[%clk 0:00:02.6]} 34. Kxd4 {[%clk 0:01:26.4]} 34...
Rfe7 {[%clk 0:00:02.9]} 35. Bg6 {[%clk 0:01:23.4]} 35... Red7+ {[%clk
0:00:02.6]} 36. Ke3 {[%clk 0:01:22.9]} 36... Rxd8 {[%clk 0:00:02.7]} 37. Rxd8
{[%clk 0:01:22.3]} 37... Kg7 {[%clk 0:00:03]} 38. Bxe4 {[%clk 0:01:21.7]} 38...
Nc5 {[%clk 0:00:02.4]} 39. Bc2 {[%clk 0:01:21.1]} 39... Be7 {[%clk 0:00:02.4]}
40. Rd5 {[%clk 0:01:18.6]} 40... Nb7 {[%clk 0:00:01.4]} 41. Bd3 {[%clk
0:01:16.6]} 41... Bc5+ {[%clk 0:00:01.2]} 42. Kf3 {[%clk 0:01:16.1]} 42... Nd6
{[%clk 0:00:01.4]} 43. Nb3 {[%clk 0:01:14.7]} 43... Bb4 {[%clk 0:00:01.6]} 44.
Nd4 {[%clk 0:01:14.6]} 1-0

[Event "*** Titled Tuesday Blitz"]
[Site "Chess.com"]
[Date "2020.12.01"]
[Round "4"]
[White "nitpicker"]
[Black "HajduIstvanCM"]
[Result "1-0"]
[WhiteElo "2262"]
[BlackElo "1759"]
[TimeControl "180+1"]
[EndTime "10:38:03 PST"]
[Termination "nitpicker won on time"]

1. d4 {[%clk 0:02:57.8]} 1... d5 {[%clk 0:02:59.5]} 2. c4 {[%clk 0:02:56.7]}
2... c6 {[%clk 0:02:59.6]} 3. Nf3 {[%clk 0:02:51.6]} 3... Nf6 {[%clk 0:02:59.2]}
4. Qb3 {[%clk 0:02:50.5]} 4... e6 {[%clk 0:02:54.8]} 5. Nc3 {[%clk 0:02:49.2]}
5... Qb6 {[%clk 0:02:53.6]} 6. g3 {[%clk 0:02:48.2]} 6... Nbd7 {[%clk
0:02:50.3]} 7. Bg2 {[%clk 0:02:48.1]} 7... Qxb3 {[%clk 0:02:43.8]} 8. axb3
{[%clk 0:02:47.1]} 8... Bd6 {[%clk 0:02:39.2]} 9. O-O {[%clk 0:02:40.4]} 9... a6
{[%clk 0:02:38.1]} 10. Nd2 {[%clk 0:02:28.6]} 10... O-O {[%clk 0:02:30.9]} 11.
f4 {[%clk 0:02:04.2]} 11... Ng4 {[%clk 0:02:06.8]} 12. Nf3 {[%clk 0:01:56.4]}
12... f5 {[%clk 0:02:01.6]} 13. c5 {[%clk 0:01:47.3]} 13... Bc7 {[%clk
0:01:51.8]} 14. b4 {[%clk 0:01:47.5]} 14... Ngf6 {[%clk 0:01:44.7]} 15. b5
{[%clk 0:01:45.3]} 15... Ne4 {[%clk 0:01:17.7]} 16. b6 {[%clk 0:01:43]} 16...
Bd8 {[%clk 0:01:14.2]} 17. Nxe4 {[%clk 0:01:24.9]} 17... dxe4 {[%clk 0:01:03.4]}
18. Nd2 {[%clk 0:01:22.3]} 18... Nf6 {[%clk 0:01:00.2]} 19. Nc4 {[%clk
0:01:19.7]} 19... Nd5 {[%clk 0:00:55.2]} 20. Bd2 {[%clk 0:01:15.6]} 20... Be7
{[%clk 0:00:46]} 21. b4 {[%clk 0:01:09.1]} 21... Rd8 {[%clk 0:00:41.3]} 22. e3
{[%clk 0:01:03.9]} 22... Bd7 {[%clk 0:00:38.9]} 23. Ra2 {[%clk 0:01:00.2]} 23...
Be8 {[%clk 0:00:37.8]} 24. Na5 {[%clk 0:00:59.4]} 24... Rd7 {[%clk 0:00:32.4]}
25. Rb1 {[%clk 0:00:56.7]} 25... Bf7 {[%clk 0:00:29.2]} 26. Bf1 {[%clk
0:00:56.7]} 26... h6 {[%clk 0:00:24.2]} 27. Nxb7 {[%clk 0:00:54.5]} 27... Rxb7
{[%clk 0:00:22.6]} 28. Rxa6 {[%clk 0:00:54.3]} 28... Rxa6 {[%clk 0:00:20.9]} 29.
Bxa6 {[%clk 0:00:52.9]} 29... Rb8 {[%clk 0:00:20.2]} 30. b5 {[%clk 0:00:51.1]}
30... Be8 {[%clk 0:00:17.6]} 31. b7 {[%clk 0:00:44.5]} 31... Nc7 {[%clk
0:00:11.4]} 32. Ba5 {[%clk 0:00:42.5]} 32... Nxb5 {[%clk 0:00:07.1]} 33. Bb6
{[%clk 0:00:40.5]} 33... Bd8 {[%clk 0:00:02.5]} 34. Bxd8 {[%clk 0:00:38.5]} 1-0

[Event "*** Titled Tuesday Blitz"]
[Site "Chess.com"]
[Date "2020.12.01"]
[Round "4"]
[White "Sanyura"]
[Black "Rainmond"]
[Result "0-1"]
[WhiteElo "2513"]
[BlackElo "2794"]
[TimeControl "180+1"]
[EndTime "10:38:06 PST"]
[Termination "Rainmond won by checkmate"]

1. e4 {[%clk 0:02:44.1]} 1... c5 {[%clk 0:02:28.8]} 2. Nf3 {[%clk 0:02:38.9]}
2... b6 {[%clk 0:02:28.4]} 3. c4 {[%clk 0:02:36.1]} 3... Bb7 {[%clk 0:02:27.8]}
4. Nc3 {[%clk 0:02:36.5]} 4... e6 {[%clk 0:02:28]} 5. d4 {[%clk 0:02:37.1]} 5...
cxd4 {[%clk 0:02:27.7]} 6. Nxd4 {[%clk 0:02:38]} 6... a6 {[%clk 0:02:25.7]} 7.
Be3 {[%clk 0:02:28.8]} 7... d6 {[%clk 0:02:22]} 8. Qa4+ {[%clk 0:02:23.8]} 8...
Nd7 {[%clk 0:02:20.9]} 9. Be2 {[%clk 0:02:19.8]} 9... Nf6 {[%clk 0:02:19.1]} 10.
f3 {[%clk 0:02:18.9]} 10... Be7 {[%clk 0:02:18.1]} 11. O-O {[%clk 0:02:17.4]}
11... Rc8 {[%clk 0:02:15.9]} 12. Rfd1 {[%clk 0:02:07.7]} 12... O-O {[%clk
0:02:14.9]} 13. Rac1 {[%clk 0:02:05.8]} 13... Qc7 {[%clk 0:02:13.9]} 14. b4
{[%clk 0:01:34.3]} 14... Qb8 {[%clk 0:02:12.7]} 15. Qb3 {[%clk 0:01:28.7]} 15...
Bd8 {[%clk 0:02:10.1]} 16. Kh1 {[%clk 0:01:26]} 16... Re8 {[%clk 0:02:07]} 17.
Bg1 {[%clk 0:01:23.1]} 17... Bc7 {[%clk 0:02:02.6]} 18. a4 {[%clk 0:01:22.3]}
18... h6 {[%clk 0:01:56.7]} 19. Nc2 {[%clk 0:00:40.1]} 19... Ne5 {[%clk
0:01:51.9]} 20. Rb1 {[%clk 0:00:36.2]} 20... Qa8 {[%clk 0:01:44.4]} 21. c5
{[%clk 0:00:34.5]} 21... d5 {[%clk 0:01:40.4]} 22. cxb6 {[%clk 0:00:30.4]} 22...
dxe4 {[%clk 0:01:39.9]} 23. f4 {[%clk 0:00:27.7]} 23... e3 {[%clk 0:01:05.7]}
24. Nxe3 {[%clk 0:00:26.8]} 24... Neg4 {[%clk 0:01:01.4]} 25. bxc7 {[%clk
0:00:25.9]} 25... Nxe3 {[%clk 0:01:01]} 26. Bxe3 {[%clk 0:00:25.9]} 26... Bxg2+
{[%clk 0:01:01.9]} 27. Kg1 {[%clk 0:00:26.4]} 27... Rxc7 {[%clk 0:00:57.5]} 28.
Rbc1 {[%clk 0:00:11.3]} 28... Bf3 {[%clk 0:00:55.1]} 29. Kf2 {[%clk 0:00:07.8]}
29... Ng4+ {[%clk 0:00:54.6]} 30. Kg3 {[%clk 0:00:07.6]} 30... Rxc3 {[%clk
0:00:48.4]} 31. Qxc3 {[%clk 0:00:04.7]} 31... Bxe2 {[%clk 0:00:48.1]} 32. Rd7
{[%clk 0:00:04.7]} 32... Qf3+ {[%clk 0:00:44.9]} 33. Kh4 {[%clk 0:00:04.6]}
33... Nxe3 {[%clk 0:00:44.1]} 34. Rg1 {[%clk 0:00:02.2]} 34... Nf5# {[%clk
0:00:43.3]} 0-1

[Event "*** Titled Tuesday Blitz"]
[Site "Chess.com"]
[Date "2020.12.01"]
[Round "4"]
[White "szabadaba"]
[Black "HackingKid98"]
[Result "1-0"]
[WhiteElo "2659"]
[BlackElo "2335"]
[TimeControl "180+1"]
[EndTime "10:38:06 PST"]
[Termination "szabadaba won by resignation"]

1. e4 {[%clk 0:03:00.9]} 1... c6 {[%clk 0:02:59.3]} 2. d4 {[%clk 0:03:01]} 2...
d5 {[%clk 0:02:59]} 3. Nc3 {[%clk 0:03:01.7]} 3... dxe4 {[%clk 0:02:58.6]} 4.
Nxe4 {[%clk 0:03:02.3]} 4... Bf5 {[%clk 0:02:58.4]} 5. Ng3 {[%clk 0:03:02.4]}
5... Bg6 {[%clk 0:02:58.4]} 6. h4 {[%clk 0:03:03]} 6... h6 {[%clk 0:02:58.5]} 7.
Nf3 {[%clk 0:03:03.5]} 7... Nd7 {[%clk 0:02:58.4]} 8. h5 {[%clk 0:03:04]} 8...
Bh7 {[%clk 0:02:58.3]} 9. Bd3 {[%clk 0:03:04.7]} 9... Bxd3 {[%clk 0:02:58.5]}
10. Qxd3 {[%clk 0:03:05.6]} 10... e6 {[%clk 0:02:59.2]} 11. Bd2 {[%clk
0:03:05.8]} 11... Ngf6 {[%clk 0:02:58.9]} 12. O-O-O {[%clk 0:03:05.8]} 12... Qb6
{[%clk 0:02:58.2]} 13. Kb1 {[%clk 0:03:04.7]} 13... Be7 {[%clk 0:02:57.6]} 14.
Nf1 {[%clk 0:03:02.3]} 14... Rd8 {[%clk 0:02:57.1]} 15. Ne3 {[%clk 0:03:01.4]}
15... O-O {[%clk 0:02:30.8]} 16. c4 {[%clk 0:02:59.9]} 16... e5 {[%clk
0:02:20.5]} 17. Nf5 {[%clk 0:02:53.5]} 17... Rfe8 {[%clk 0:02:01.9]} 18. Nxe7+
{[%clk 0:02:44.2]} 18... Rxe7 {[%clk 0:02:02.8]} 19. dxe5 {[%clk 0:02:44.4]}
19... Nxe5 {[%clk 0:01:58.6]} 20. Qf5 {[%clk 0:02:23.7]} 20... Nxf3 {[%clk
0:01:42.6]} 21. Qxf3 {[%clk 0:02:22.5]} 21... Red7 {[%clk 0:01:16]} 22. Be3
{[%clk 0:02:18.3]} 22... Qb4 {[%clk 0:01:08.8]} 23. Rxd7 {[%clk 0:02:10.6]}
23... Rxd7 {[%clk 0:01:09.7]} 24. Rc1 {[%clk 0:02:10.4]} 24... Qe7 {[%clk
0:00:57.2]} 25. g4 {[%clk 0:02:01.3]} 25... Qe4+ {[%clk 0:00:52.4]} 26. Qxe4
{[%clk 0:01:58.9]} 26... Nxe4 {[%clk 0:00:52]} 27. Kc2 {[%clk 0:01:56]} 27... b6
{[%clk 0:00:40.5]} 28. f3 {[%clk 0:01:53.6]} 28... Ng5 {[%clk 0:00:24.1]} 29.
Rf1 {[%clk 0:01:49.9]} 29... Ne6 {[%clk 0:00:19.5]} 30. Kc3 {[%clk 0:01:42.8]}
30... c5 {[%clk 0:00:18.7]} 31. Rf2 {[%clk 0:01:32.6]} 31... Nd4 {[%clk
0:00:18.2]} 32. Rd2 {[%clk 0:01:30.1]} 32... f5 {[%clk 0:00:16.7]} 33. Bxd4
{[%clk 0:01:29.1]} 33... cxd4+ {[%clk 0:00:17.6]} 34. Rxd4 {[%clk 0:01:29.7]}
34... Rf7 {[%clk 0:00:17.1]} 35. Rf4 {[%clk 0:01:14.8]} 35... fxg4 {[%clk
0:00:09.4]} 36. Rxf7 {[%clk 0:01:14.5]} 36... Kxf7 {[%clk 0:00:10.3]} 37. fxg4
{[%clk 0:01:14.6]} 37... g6 {[%clk 0:00:10.5]} 38. b4 {[%clk 0:01:12.7]} 38...
gxh5 {[%clk 0:00:08.7]} 39. gxh5 {[%clk 0:01:12.8]} 39... Kf6 {[%clk 0:00:09.6]}
40. Kd4 {[%clk 0:01:10.9]} 40... Kg5 {[%clk 0:00:09.4]} 41. c5 {[%clk
0:01:10.8]} 41... bxc5+ {[%clk 0:00:09.3]} 42. bxc5 {[%clk 0:01:10.9]} 42... Kf6
{[%clk 0:00:09.9]} 43. Kd5 {[%clk 0:01:11.2]} 43... Ke7 {[%clk 0:00:10.1]} 44.
Kc6 {[%clk 0:01:11.5]} 44... Kd8 {[%clk 0:00:10.2]} 45. Kb7 {[%clk 0:01:11.7]}
1-0

[Event "*** Titled Tuesday Blitz"]
[Site "Chess.com"]
[Date "2020.12.01"]
[Round "4"]
[White "1977Ivan"]
[Black "woodhy"]
[Result "1-0"]
[WhiteElo "2674"]
[BlackElo "2468"]
[TimeControl "180+1"]
[EndTime "10:38:10 PST"]
[Termination "1977Ivan won by checkmate"]

1. d4 {[%clk 0:03:00.9]} 1... Nf6 {[%clk 0:02:59]} 2. Nf3 {[%clk 0:03:01.3]}
2... b6 {[%clk 0:02:58.4]} 3. c4 {[%clk 0:02:58.8]} 3... e6 {[%clk 0:02:57.9]}
4. g3 {[%clk 0:02:50.9]} 4... Bb7 {[%clk 0:02:57.3]} 5. Bg2 {[%clk 0:02:50.2]}
5... Be7 {[%clk 0:02:58.2]} 6. Nc3 {[%clk 0:02:47.5]} 6... O-O {[%clk
0:02:57.4]} 7. Qc2 {[%clk 0:02:45.1]} 7... d5 {[%clk 0:02:45.4]} 8. cxd5 {[%clk
0:02:44.5]} 8... exd5 {[%clk 0:02:42.9]} 9. O-O {[%clk 0:02:43.2]} 9... Nbd7
{[%clk 0:02:42.7]} 10. b3 {[%clk 0:02:41.7]} 10... Rc8 {[%clk 0:02:42.4]} 11.
Bb2 {[%clk 0:02:41.7]} 11... Re8 {[%clk 0:02:42.6]} 12. e3 {[%clk 0:02:38.3]}
12... a6 {[%clk 0:02:41.9]} 13. Rac1 {[%clk 0:02:35.8]} 13... c5 {[%clk
0:02:34.1]} 14. Rfd1 {[%clk 0:02:36.3]} 14... c4 {[%clk 0:02:34.2]} 15. Ne5
{[%clk 0:02:27.7]} 15... b5 {[%clk 0:02:24]} 16. bxc4 {[%clk 0:02:25.5]} 16...
bxc4 {[%clk 0:02:24.9]} 17. Rb1 {[%clk 0:02:23]} 17... Qc7 {[%clk 0:02:17.8]}
18. f4 {[%clk 0:02:12.1]} 18... Rb8 {[%clk 0:02:03.9]} 19. Bf3 {[%clk
0:02:06.7]} 19... h5 {[%clk 0:01:43]} 20. Qg2 {[%clk 0:02:02]} 20... Nb6 {[%clk
0:01:08]} 21. Rdc1 {[%clk 0:01:46.8]} 21... Ba8 {[%clk 0:00:59.6]} 22. h3 {[%clk
0:01:46.3]} 22... Qd6 {[%clk 0:00:38.2]} 23. g4 {[%clk 0:01:43.4]} 23... hxg4
{[%clk 0:00:39.1]} 24. hxg4 {[%clk 0:01:43.7]} 24... Nfd7 {[%clk 0:00:38.7]} 25.
g5 {[%clk 0:01:28.3]} 25... Nxe5 {[%clk 0:00:38.3]} 26. dxe5 {[%clk 0:01:26.8]}
26... Qc5 {[%clk 0:00:38.2]} 27. Qf2 {[%clk 0:01:24.1]} 27... Rbd8 {[%clk
0:00:37]} 28. Ne2 {[%clk 0:01:23.5]} 28... Qa5 {[%clk 0:00:31.1]} 29. Bd4 {[%clk
0:01:22.6]} 29... Na4 {[%clk 0:00:31.4]} 30. Kg2 {[%clk 0:01:16.4]} 30... Nc5
{[%clk 0:00:27.8]} 31. Rh1 {[%clk 0:01:13.8]} 31... f6 {[%clk 0:00:12.1]} 32.
gxf6 {[%clk 0:01:08.2]} 32... gxf6 {[%clk 0:00:10.4]} 33. Qg3+ {[%clk
0:01:07.3]} 33... Kf7 {[%clk 0:00:09.5]} 34. Rh7+ {[%clk 0:01:05.7]} 34... Ke6
{[%clk 0:00:09.7]} 35. Bg4+ {[%clk 0:00:48]} 35... f5 {[%clk 0:00:09.3]} 36.
Bxf5+ {[%clk 0:00:47.7]} 36... Kxf5 {[%clk 0:00:09.4]} 37. Rh5+ {[%clk
0:00:37.6]} 37... Ke4 {[%clk 0:00:07]} 38. Qg6# {[%clk 0:00:35.4]} 1-0

[Event "*** Titled Tuesday Blitz"]
[Site "Chess.com"]
[Date "2020.12.01"]
[Round "4"]
[White "mapleaff"]
[Black "FearNoEvil12"]
[Result "1-0"]
[WhiteElo "2395"]
[BlackElo "2155"]
[TimeControl "180+1"]
[EndTime "10:38:11 PST"]
[Termination "mapleaff won by resignation"]

1. e4 {[%clk 0:03:00.9]} 1... a6 {[%clk 0:02:59.3]} 2. d4 {[%clk 0:02:59.9]}
2... b5 {[%clk 0:02:59.7]} 3. Nf3 {[%clk 0:02:59.7]} 3... Bb7 {[%clk 0:03:00.1]}
4. Bd3 {[%clk 0:03:00]} 4... e6 {[%clk 0:03:00.5]} 5. O-O {[%clk 0:02:59.9]}
5... Nf6 {[%clk 0:03:01.1]} 6. Qe2 {[%clk 0:02:59.4]} 6... d6 {[%clk 0:03:01.5]}
7. a4 {[%clk 0:02:58.4]} 7... b4 {[%clk 0:02:59.8]} 8. Nbd2 {[%clk 0:02:57.7]}
8... Nbd7 {[%clk 0:03:00.2]} 9. c3 {[%clk 0:02:50.3]} 9... bxc3 {[%clk
0:02:59.1]} 10. bxc3 {[%clk 0:02:51.2]} 10... h6 {[%clk 0:02:58.8]} 11. Ba3
{[%clk 0:02:50.8]} 11... g5 {[%clk 0:02:57.3]} 12. e5 {[%clk 0:02:49.8]} 12...
Nd5 {[%clk 0:02:55.9]} 13. exd6 {[%clk 0:02:48.9]} 13... cxd6 {[%clk 0:02:55]}
14. g3 {[%clk 0:02:41]} 14... Rg8 {[%clk 0:02:44.9]} 15. Ne4 {[%clk 0:02:38.5]}
15... N7f6 {[%clk 0:02:40]} 16. Rab1 {[%clk 0:02:28.9]} 16... Rb8 {[%clk
0:02:37.4]} 17. Rxb7 {[%clk 0:02:24.3]} 17... Rxb7 {[%clk 0:02:36.2]} 18. Bxa6
{[%clk 0:02:24.6]} 18... Rb6 {[%clk 0:02:26.2]} 19. Bb5+ {[%clk 0:02:18.9]}
19... Nd7 {[%clk 0:02:20.5]} 20. a5 {[%clk 0:02:08.8]} 20... Rxb5 {[%clk
0:02:13.3]} 21. Qxb5 {[%clk 0:02:07]} 21... Qc7 {[%clk 0:02:05.1]} 22. c4 {[%clk
0:01:50.8]} 22... f5 {[%clk 0:02:04]} 23. cxd5 {[%clk 0:01:19.3]} 23... fxe4
{[%clk 0:02:02.9]} 24. Nd2 {[%clk 0:01:05.4]} 24... exd5 {[%clk 0:02:01.8]} 25.
Qxd5 {[%clk 0:01:03.8]} 25... Nf6 {[%clk 0:02:00.6]} 26. Qe6+ {[%clk 0:00:35.5]}
26... Qe7 {[%clk 0:01:57.5]} 27. Qc8+ {[%clk 0:00:34.4]} 27... Kf7 {[%clk
0:01:57.5]} 28. Rc1 {[%clk 0:00:29.6]} 28... Bg7 {[%clk 0:01:56.4]} 29. Qc4+
{[%clk 0:00:24.1]} 29... Kg6 {[%clk 0:01:44.9]} 30. Re1 {[%clk 0:00:21.7]} 30...
Qd7 {[%clk 0:01:38.6]} 31. Nxe4 {[%clk 0:00:20.1]} 31... d5 {[%clk 0:01:37.9]}
32. Nxf6 {[%clk 0:00:20.1]} 32... Bxf6 {[%clk 0:01:32.6]} 33. Qd3+ {[%clk
0:00:20.1]} 33... Kg7 {[%clk 0:01:31.6]} 34. Bc5 {[%clk 0:00:20.4]} 34... Re8
{[%clk 0:01:23.3]} 35. Rb1 {[%clk 0:00:18.8]} 35... Re4 {[%clk 0:01:13]} 36. a6
{[%clk 0:00:18.5]} 36... Qe6 {[%clk 0:01:12.6]} 37. a7 {[%clk 0:00:15.6]} 37...
Re1+ {[%clk 0:01:11.7]} 38. Rxe1 {[%clk 0:00:16]} 38... Qxe1+ {[%clk 0:01:11.2]}
39. Qf1 {[%clk 0:00:16.9]} 39... Qa5 {[%clk 0:01:10.2]} 40. Qb1 {[%clk 0:00:16]}
40... Qa6 {[%clk 0:01:02.6]} 41. Qb8 {[%clk 0:00:11.9]} 41... Qe6 {[%clk
0:00:50.4]} 42. Qb7+ {[%clk 0:00:08.9]} 42... Kg6 {[%clk 0:00:49.4]} 43. Qb1+
{[%clk 0:00:08.4]} 43... Kh5 {[%clk 0:00:47.4]} 44. a8=Q {[%clk 0:00:08]} 1-0

[Event "*** Titled Tuesday Blitz"]
[Site "Chess.com"]
[Date "2020.12.01"]
[Round "4"]
[White "QuintilianoR"]
[Black "BigAl"]
[Result "0-1"]
[WhiteElo "2628"]
[BlackElo "2472"]
[TimeControl "180+1"]
[EndTime "10:38:13 PST"]
[Termination "BigAl won by resignation"]

1. d4 {[%clk 0:03:00.8]} 1... Nf6 {[%clk 0:02:59.5]} 2. c4 {[%clk 0:03:00.5]}
2... g6 {[%clk 0:03:00.1]} 3. Nc3 {[%clk 0:02:59.5]} 3... Bg7 {[%clk 0:03:00.7]}
4. e4 {[%clk 0:02:59.7]} 4... O-O {[%clk 0:03:01.2]} 5. Nf3 {[%clk 0:02:59.8]}
5... d6 {[%clk 0:03:01.6]} 6. Be2 {[%clk 0:03:00.1]} 6... Bg4 {[%clk 0:03:02.2]}
7. Be3 {[%clk 0:02:58.9]} 7... Nbd7 {[%clk 0:03:02.5]} 8. Ng1 {[%clk 0:02:57.4]}
8... e5 {[%clk 0:03:01.8]} 9. d5 {[%clk 0:02:28]} 9... Bxe2 {[%clk 0:03:00.2]}
10. Ngxe2 {[%clk 0:02:27.9]} 10... Ng4 {[%clk 0:03:00]} 11. Bc1 {[%clk
0:02:27.3]} 11... f5 {[%clk 0:03:00.6]} 12. exf5 {[%clk 0:02:23.8]} 12... Qh4
{[%clk 0:02:38]} 13. g3 {[%clk 0:01:46.8]} 13... Qh3 {[%clk 0:02:38]} 14. Ng1
{[%clk 0:01:42.8]} 14... Qg2 {[%clk 0:02:26.9]} 15. Qf3 {[%clk 0:01:41.9]} 15...
Qxf3 {[%clk 0:02:25.3]} 16. Nxf3 {[%clk 0:01:42.8]} 16... Rxf5 {[%clk
0:02:17.2]} 17. Nh4 {[%clk 0:01:42]} 17... Rxf2 {[%clk 0:02:16.7]} 18. h3 {[%clk
0:01:40.9]} 18... Raf8 {[%clk 0:02:13.9]} 19. hxg4 {[%clk 0:01:36.6]} 19... Nc5
{[%clk 0:02:14]} 20. Kd1 {[%clk 0:01:22.9]} 20... e4 {[%clk 0:01:58.1]} 21. Rb1
{[%clk 0:00:55.5]} 21... Bxc3 {[%clk 0:01:16.7]} 22. bxc3 {[%clk 0:00:52.9]}
22... Rxa2 {[%clk 0:01:13.9]} 23. Be3 {[%clk 0:00:35.2]} 23... Na4 {[%clk
0:01:00.2]} 24. Bd4 {[%clk 0:00:30.8]} 24... Nb2+ {[%clk 0:01:00.4]} 25. Kc2
{[%clk 0:00:27]} 25... Nd3+ {[%clk 0:00:59.4]} 26. Kb3 {[%clk 0:00:24.3]} 26...
Ra6 {[%clk 0:00:52.1]} 27. Rhf1 {[%clk 0:00:21.9]} 27... Re8 {[%clk 0:00:38]}
28. Rbd1 {[%clk 0:00:15.6]} 28... c5 {[%clk 0:00:35.2]} 29. dxc6 {[%clk
0:00:14.7]} 29... bxc6 {[%clk 0:00:35.4]} 30. Ra1 {[%clk 0:00:09.3]} 30... Rb8+
{[%clk 0:00:23.4]} 31. Kc2 {[%clk 0:00:09.1]} 31... Rb2+ {[%clk 0:00:23.3]} 0-1